bitfinex-derivatives/quotes_BTCF0:USTF0_20260106
["timestamp","ask_amount","ask_price","bid_price","bid_amount"]
[1767660584152,0.010668,93735.0,93721.0,0.04]
[1767660584554,0.010668,93735.0,93708.0,0.09076]
[1767660584755,0.010668,93735.0,93708.0,0.13076]
[1767660585156,0.010668,93735.0,93714.0,0.010671]
[1767660585354,0.010668,93735.0,93714.0,0.050671]
[1767660585557,0.010668,93735.0,93716.0,0.010671]
[1767660585857,0.010668,93735.0,93716.0,0.00285625]
[1767660586047,0.010668,93735.0,93717.0,0.06234177]
[1767660586248,0.010668,93735.0,93718.0,0.06234177]
[1767660586448,0.010668,93735.0,93719.0,0.06234177]
[1767660586761,0.010669,93733.0,93720.0,0.06234177]
[1767660586953,0.010669,93733.0,93721.0,0.06234177]
[1767660587149,0.010669,93733.0,93722.0,0.06234177]
[1767660587347,0.010669,93733.0,93722.0,0.10234177]
[1767660588458,0.010668,93736.0,93722.0,0.10234177]
[1767660589757,0.010669,93734.0,93723.0,0.06234177]
[1767660589957,0.010669,93734.0,93723.0,0.10234177]
[1767660590453,0.101428,93737.0,93723.0,0.10234177]
[1767660591060,0.010668,93740.0,93723.0,0.10234177]
[1767660591262,0.10912182,93740.0,93723.0,0.10234177]
[1767660591558,0.10912182,93740.0,93724.0,0.06234177]
[1767660591863,0.09076,93748.0,93730.0,0.16079559]
[1767660592161,0.010668,93742.0,93730.0,0.04]
[1767660592961,0.09076,93748.0,93730.0,0.04]
[1767660592962,0.09686216,93747.0,93730.0,0.04]
[1767660594564,0.09686216,93747.0,93727.0,0.06508893]
[1767660594766,0.010668,93743.0,93727.0,0.10508893]
[1767660594972,0.010667,93746.0,93730.0,0.09845382]
[1767660595265,0.09686216,93747.0,93730.0,0.13845382]
[1767660595464,0.09686216,93747.0,93730.0,0.04]
[1767660595855,0.10752916,93747.0,93730.0,0.04]
[1767660596765,0.10752916,93747.0,93731.0,0.06508893]
[1767660597062,0.10752916,93747.0,93731.0,0.10508893]
[1767660598264,0.09686216,93747.0,93731.0,0.10508893]
[1767660599069,0.02730692,93751.0,93732.0,0.06508893]
[1767660599266,0.01663992,93751.0,93740.0,0.16354275]
[1767660599462,0.09895847,93758.0,93741.0,0.06508893]
[1767660599666,0.010666,93757.0,93742.0,0.06508893]
[1767660599866,0.010666,93757.0,93743.0,0.06508893]
[1767660600065,0.010666,93757.0,93743.0,0.10508893]
[1767660600567,0.01745475,93758.0,93743.0,0.10508893]
[1767660600767,0.18555284,93761.0,93743.0,0.11575593]
[1767660601173,0.09895847,93761.0,93745.0,0.010667]
[1767660601378,0.09076,93764.0,93750.0,0.09845382]
[1767660601667,0.09187391,93763.0,93746.0,0.06483123]
[1767660601858,0.09187391,93761.0,93746.0,0.04]
[1767660602362,0.010665,93762.0,93747.0,0.06483123]
[1767660602670,0.10253891,93762.0,93747.0,0.04]
[1767660602967,0.10253891,93762.0,93748.0,0.06483123]
[1767660602968,0.09187391,93762.0,93748.0,0.06483123]
[1767660603165,0.13230707,93780.0,93755.0,0.06483123]
[1767660603367,0.01279568,93779.0,93761.0,0.06483123]
[1767660603558,0.00213268,93779.0,93762.0,0.06483123]
[1767660603758,0.010663,93785.0,93769.0,0.09845382]
[1767660603966,0.010663,93785.0,93769.0,0.13845382]
[1767660604267,0.010663,93782.0,93769.0,0.04]
[1767660604470,0.01709852,93782.0,93769.0,0.04]
[1767660604763,0.09187391,93774.0,93751.0,0.010667]
[1767660604969,0.09187391,93774.0,93759.0,0.13076]
[1767660605164,0.15748163,93773.0,93759.0,0.04]
[1767660605364,0.10765099,93788.0,93756.0,0.09072]
[1767660605365,0.09187391,93766.0,93756.0,0.09072]
[1767660605558,0.09187391,93766.0,93756.0,0.04]
[1767660605971,0.09187391,93765.0,93756.0,0.04]
[1767660606675,0.00015997,93770.0,93756.0,0.04]
[1767660607376,0.00015997,93770.0,93761.0,0.04925087]
[1767660607668,0.09187391,93780.0,93765.0,0.05991587]
[1767660607868,0.09187391,93780.0,93765.0,0.08925087]
[1767660608271,0.09187391,93780.0,93766.0,0.05150102]
[1767660608470,0.09187391,93780.0,93766.0,0.09150102]
[1767660609771,0.09187391,93780.0,93766.0,0.04]
[1767660610166,0.09187391,93780.0,93770.0,0.09845382]
[1767660610475,0.18259391,93786.0,93771.0,0.04958888]
[1767660610772,0.18259391,93786.0,93770.0,0.09845382]
[1767660610974,0.09187391,93785.0,93770.0,0.13845382]
[1767660611170,0.15748163,93785.0,93770.0,0.04]
[1767660611370,0.09187391,93782.0,93770.0,0.04]
[1767660611566,0.10253691,93782.0,93770.0,0.04]
[1767660611968,0.09187391,93782.0,93770.0,0.04]
[1767660612770,0.09187391,93782.0,93770.0,0.13845382]
[1767660613868,0.09072,93786.0,93770.0,0.13845382]
[1767660614064,0.09187391,93785.0,93770.0,0.13845382]
[1767660614269,0.09187391,93779.0,93770.0,0.04]
[1767660614477,0.06560772,93780.0,93770.0,0.04]
[1767660614478,0.09187391,93777.0,93770.0,0.04]
[1767660616573,0.10253791,93777.0,93770.0,0.04]
[1767660616781,0.09187391,93776.0,93763.0,0.09072]
[1767660616977,0.15748163,93769.0,93751.0,0.010667]
[1767660617270,0.15748163,93769.0,93758.0,0.09072]
[1767660617271,0.09187391,93768.0,93758.0,0.09072]
[1767660617473,0.09187391,93768.0,93758.0,0.13072]
[1767660618778,0.09187391,93767.0,93758.0,0.13072]
[1767660618967,0.06560772,93768.0,93758.0,0.04]
[1767660618968,0.09187391,93762.0,93758.0,0.04]
[1767660619170,0.09187391,93760.0,93754.0,0.00015997]
[1767660619379,0.09845382,93770.0,93749.0,0.01280037]
[1767660619380,0.09187391,93758.0,93749.0,0.00213337]
[1767660619680,0.09187391,93756.0,93749.0,0.02]
[1767660620670,0.09187391,93762.0,93749.0,0.02]
[1767660620870,0.09187391,93759.0,93749.0,0.02]
[1767660621970,0.09187391,93757.0,93749.0,0.02]
[1767660622186,0.09187391,93755.0,93742.0,0.09072]
[1767660622480,0.09187391,93755.0,93742.0,0.11072]
[1767660625673,0.09187391,93754.0,93742.0,0.11072]
[1767660625977,0.09187391,93753.0,93742.0,0.11072]
[1767660627069,0.10253991,93759.0,93742.0,0.11072]
[1767660627273,0.09187391,93758.0,93742.0,0.11072]
[1767660628384,0.09187391,93757.0,93742.0,0.11072]
[1767660632483,0.09187391,93757.0,93742.0,0.121388]
[1767660632687,0.09194505,93763.0,93743.0,0.06452623]
[1767660632987,0.09194505,93763.0,93745.0,0.06452623]
[1767660633171,0.10261005,93763.0,93745.0,0.10452623]
[1767660633376,0.09194505,93761.0,93745.0,0.04]
[1767660633589,0.010666,93757.0,93745.0,0.04]
[1767660633776,0.10261105,93757.0,93745.0,0.04]
[1767660634586,0.09845382,93760.0,93745.0,0.04]
[1767660634587,0.06542538,93752.0,93745.0,0.04]
[1767660634887,0.09194505,93749.0,93737.0,0.09072]
[1767660635086,0.09194505,93749.0,93737.0,0.13072]
[1767660635286,0.09194505,93749.0,93740.0,0.010668]
[1767660635487,0.09194505,93756.0,93740.0,0.050668]
[1767660636483,0.010666,93754.0,93740.0,0.04]
[1767660636685,0.10261105,93754.0,93740.0,0.04]
[1767660636884,0.10261205,93744.0,93726.0,0.06452623]
[1767660637076,0.10261205,93744.0,93727.0,0.15524623]
[1767660637274,0.10261205,93744.0,93728.0,0.06452623]
[1767660637474,0.09194505,93744.0,93730.0,0.07519523]
[1767660637684,0.09194505,93744.0,93732.0,0.010669]
[1767660637878,0.09194505,93749.0,93732.0,0.04]
[1767660638489,0.10261205,93749.0,93732.0,0.04]
[1767660638684,0.09194505,93755.0,93737.0,0.06452623]
[1767660638876,0.010666,93755.0,93740.0,0.06452623]
[1767660639081,0.010666,93753.0,93740.0,0.04]
[1767660639376,0.09194505,93755.0,93740.0,0.04]
[1767660639589,0.10261105,93755.0,93740.0,0.04]
[1767660640991,0.10261105,93753.0,93740.0,0.04]
[1767660641788,0.09194505,93759.0,93740.0,0.04]
[1767660641983,0.09194505,93758.0,93740.0,0.11519423]
[1767660642689,0.09194505,93758.0,93741.0,0.06452623]
[1767660642891,0.09194505,93758.0,93741.0,0.10452623]
[1767660643187,0.09194505,93758.0,93741.0,0.04]
[1767660643395,0.09194505,93757.0,93741.0,0.04]
[1767660643692,0.10261105,93753.0,93741.0,0.04]
[1767660643893,0.10261105,93753.0,93741.0,0.00807051]
[1767660644092,0.10261205,93749.0,93737.0,0.09072]
[1767660644393,0.09194505,93746.0,93737.0,0.13072]
[1767660645290,0.15737043,93743.0,93732.0,0.09072]
[1767660645493,0.09194505,93742.0,93732.0,0.09072]
[1767660645693,0.09194505,93747.0,93732.0,0.11072]
[1767660645996,0.09194505,93747.0,93733.0,0.010669]
[1767660646294,0.09194505,93752.0,93735.0,0.010668]
[1767660646493,0.06542538,93757.0,93736.0,0.06452623]
[1767660646692,0.09194505,93756.0,93741.0,0.010668]
[1767660647086,0.09194505,93756.0,93736.0,0.06452623]
[1767660647287,0.09194505,93754.0,93736.0,0.10452623]
[1767660647688,0.10261105,93753.0,93736.0,0.10452623]
[1767660648687,0.09194505,93753.0,93736.0,0.11519423]
[1767660648890,0.09194505,93753.0,93736.0,0.10452623]
[1767660649398,0.010666,93752.0,93736.0,0.10452623]
[1767660651299,0.09194505,93753.0,93736.0,0.10452623]
[1767660651598,0.09194505,93753.0,93739.0,0.010668]
[1767660653501,0.09194505,93771.0,93753.0,0.06452623]
[1767660653691,0.09194505,93771.0,93755.0,0.06452623]
[1767660653889,0.09072,93773.0,93756.0,0.06452623]
[1767660654304,0.18213034,93773.0,93756.0,0.06452623]
[1767660655290,0.18213034,93773.0,93757.0,0.010666]
[1767660656091,0.18213034,93773.0,93756.0,0.06452623]
[1767660656293,0.18213034,93773.0,93756.0,0.10452623]
[1767660656498,0.09141034,93771.0,93756.0,0.04]
[1767660657388,0.16387166,93762.0,93740.0,0.0628874]
[1767660657593,0.09141034,93761.0,93745.0,0.010667]
[1767660657798,0.06179632,93766.0,93746.0,0.0628874]
[1767660657998,0.06179632,93766.0,93746.0,0.1028874]
[1767660658205,0.06179632,93766.0,93748.0,0.010667]
[1767660658502,0.10207534,93765.0,93748.0,0.04]
[1767660658698,0.010665,93763.0,93748.0,0.04]
[1767660658900,0.10207634,93761.0,93748.0,0.04]
[1767660659907,0.010666,93759.0,93748.0,0.04]
[1767660660206,0.010666,93755.0,93741.0,0.0628874]
[1767660660404,0.010666,93757.0,93742.0,0.09072]
[1767660660605,0.010666,93757.0,93742.0,0.13072]
[1767660660810,0.09141034,93759.0,93742.0,0.13072]
[1767660661002,0.09141034,93759.0,93742.0,0.19143504]
[1767660661598,0.09141034,93759.0,93743.0,0.06071504]
[1767660661813,0.09141034,93759.0,93743.0,0.10071504]
[1767660663698,0.010665,93761.0,93743.0,0.10071504]
[1767660663899,0.010665,93761.0,93744.0,0.06071504]
[1767660664108,0.16016298,93764.0,93744.0,0.10071504]
[1767660664303,0.09055528,93763.0,93744.0,0.10071504]
[1767660664707,0.09055528,93763.0,93745.0,0.06071504]
[1767660665010,0.010664,93775.0,93758.0,0.06071504]
[1767660665303,0.010664,93775.0,93758.0,0.10071504]
[1767660665911,0.10121928,93775.0,93758.0,0.04]
[1767660666100,0.00213268,93779.0,93759.0,0.06071504]
[1767660666306,0.15163066,93779.0,93759.0,0.05090924]
[1767660666503,0.14949798,93775.0,93759.0,0.04]
[1767660666811,0.09055528,93774.0,93759.0,0.04]
[1767660667208,0.10121928,93774.0,93759.0,0.04]
[1767660668613,0.10121628,93803.0,93778.0,0.07137804]
[1767660668915,0.010659,93817.0,93795.0,0.15362434]
[1767660669120,0.09055528,93828.0,93805.0,0.06071504]
[1767660669328,0.010659,93820.0,93806.0,0.09072]
[1767660669612,0.09055528,93813.0,93801.0,0.09072]
[1767660669806,0.010659,93816.0,93801.0,0.13072]
[1767660670207,0.10121428,93816.0,93801.0,0.13072]
[1767660670804,0.09055528,93805.0,93783.0,0.07137804]
[1767660671016,0.09055528,93819.0,93795.0,0.06071504]
[1767660671214,0.14949798,93821.0,93798.0,0.0929093]
[1767660671408,0.14949798,93819.0,93800.0,0.010661]
[1767660671718,0.01731465,93820.0,93808.0,0.01066]
[1767660671903,0.24021798,93825.0,93808.0,0.04]
[1767660672109,0.25745907,93825.0,93808.0,0.04]
[1767660673520,0.14949798,93824.0,93808.0,0.04]
[1767660673708,0.14949798,93822.0,93808.0,0.04]
[1767660673913,0.09055528,93815.0,93796.0,0.09072]
[1767660674116,0.09055528,93815.0,93797.0,0.010661]
[1767660674315,0.09055528,93815.0,93798.0,0.09068]
[1767660674514,0.09055528,93815.0,93799.0,0.010661]
[1767660674711,0.09055528,93815.0,93799.0,0.050661]
[1767660675112,0.09055528,93821.0,93799.0,0.050661]
[1767660675611,0.09055528,93821.0,93804.0,0.010661]
[1767660675812,0.09055528,93821.0,93804.0,0.050661]
[1767660676615,0.09055528,93821.0,93807.0,0.01066]
[1767660677015,0.09055528,93821.0,93807.0,0.05066]
[1767660677622,0.10796109,93825.0,93807.0,0.05066]
[1767660677822,0.19851637,93825.0,93807.0,0.05066]
[1767660678619,0.19851637,93825.0,93807.0,0.04]
[1767660678923,0.18123528,93831.0,93813.0,0.010659]
[1767660679123,0.10828461,93831.0,93813.0,0.050659]
[1767660679821,0.14949798,93825.0,93813.0,0.04]
[1767660680826,0.09055528,93821.0,93813.0,0.04]
[1767660681721,1e-08,93828.0,93813.0,0.20205504]
[1767660681928,1e-08,93828.0,93813.0,0.14134]
[1767660682118,1e-08,93828.0,93821.0,0.010659]
[1767660682316,1e-08,93828.0,93818.0,0.06071504]
[1767660682519,3.3e-07,93839.0,93821.0,0.06071504]
[1767660682834,3.3e-07,93839.0,93822.0,0.09068]
[1767660683126,3.3e-07,93839.0,93822.0,0.13068]
[1767660683325,0.09055528,93838.0,93822.0,0.13068]
[1767660683820,0.14949798,93830.0,93809.0,0.01066]
[1767660684023,0.10121328,93829.0,93810.0,0.09068]
[1767660684218,0.14949798,93826.0,93810.0,0.04]
[1767660684413,0.09055528,93825.0,93810.0,0.13068]
[1767660684619,0.09055528,93822.0,93810.0,0.04]
[1767660684826,0.14949798,93822.0,93809.0,0.09068]
[1767660685016,0.14949798,93822.0,93809.0,0.13068]
[1767660685216,0.09055528,93821.0,93809.0,0.13068]
[1767660687426,0.09055528,93821.0,93809.0,0.04]
[1767660687619,0.09055528,93821.0,93808.0,0.00015988]
[1767660687819,0.09055528,93821.0,93808.0,0.04015988]
[1767660688019,0.002132,93809.0,93808.0,0.04015988]
[1767660688422,0.10121428,93821.0,93808.0,0.04015988]
[1767660688825,0.09055528,93821.0,93808.0,0.04015988]
[1767660691229,0.05933983,93826.0,93808.0,0.01015988]
[1767660691631,0.010658,93829.0,93809.0,0.05972641]
[1767660691838,0.15439933,93830.0,93810.0,0.01066]
[1767660692129,0.0950595,93829.0,93810.0,0.01066]
[1767660692432,0.15439933,93829.0,93810.0,0.01066]
[1767660692932,0.05933983,93827.0,93808.0,0.00015988]
[1767660693230,0.15439933,93824.0,93808.0,0.04015988]
[1767660694133,0.05933983,93829.0,93809.0,0.01066]
[1767660694338,0.15439933,93829.0,93809.0,0.04]
[1767660694534,0.09064,93833.0,93813.0,0.05972641]
[1767660694839,0.09064033,93839.0,93821.0,0.05972641]
[1767660695038,3.3e-07,93839.0,93824.0,0.010658]
[1767660697040,0.15439966,93839.0,93818.0,0.010659]
[1767660697339,0.15439966,93839.0,93818.0,0.050659]
[1767660697340,0.15439933,93835.0,93818.0,0.050659]
[1767660697728,0.15439933,93831.0,93818.0,0.04]
[1767660698036,0.0950595,93831.0,93818.0,0.04]
[1767660698434,0.0950595,93829.0,93818.0,0.04]
[1767660699227,0.15439933,93826.0,93818.0,0.03178044]
[1767660699434,0.15439933,93825.0,93811.0,0.09064]
[1767660699734,0.0950595,93832.0,93811.0,0.1313]
[1767660699935,0.0950595,93832.0,93812.0,0.05972641]
[1767660700436,0.15439933,93822.0,93812.0,0.04]
[1767660700635,0.05933983,93820.0,93812.0,0.04]
[1767660700825,0.0950595,93821.0,93812.0,0.04]
[1767660701026,0.05933983,93824.0,93812.0,0.04]
[1767660701227,0.15439933,93824.0,93812.0,0.04]
[1767660701535,0.15439933,93823.0,93812.0,0.04]
[1767660702237,0.05933983,93822.0,93812.0,0.04]
[1767660702631,0.15439933,93820.0,93808.0,0.00015988]
[1767660702839,0.15439933,93817.0,93808.0,0.04015988]
[1767660703333,0.0950595,93817.0,93808.0,0.04015988]
[1767660704140,0.05933983,93821.0,93808.0,0.04015988]
[1767660704339,0.0950595,93823.0,93808.0,0.04015988]
[1767660705040,0.05933983,93822.0,93808.0,0.04015988]
[1767660705234,0.15439933,93822.0,93808.0,0.04015988]
[1767660705443,0.010659,93819.0,93808.0,0.04015988]
[1767660706039,0.15439933,93821.0,93808.0,0.04015988]
[1767660706743,0.010659,93820.0,93808.0,0.04015988]
[1767660707041,0.010659,93818.0,93808.0,0.00015988]
[1767660707243,0.16505833,93821.0,93808.0,0.00015988]
[1767660707931,0.15439933,93821.0,93808.0,0.00015988]
[1767660709140,0.010659,93820.0,93808.0,0.00015988]
[1767660709638,0.010659,93814.0,93794.0,0.05972641]
[1767660709829,0.05933983,93813.0,93795.0,0.09064]
[1767660710029,0.0950595,93814.0,93795.0,0.13064]
[1767660710235,0.06999883,93817.0,93796.0,0.07038741]
[1767660710437,0.06999883,93817.0,93796.0,0.11038741]
[1767660710633,0.06999883,93817.0,93797.0,0.05972641]
[1767660710842,0.06999883,93817.0,93797.0,0.09972641]
[1767660711334,0.00015988,93816.0,93797.0,0.09972641]
[1767660712435,0.010659,93815.0,93797.0,0.09972641]
[1767660714244,0.01066,93813.0,93797.0,0.09972641]
[1767660714746,0.010659,93814.0,93797.0,0.09972641]
[1767660715045,0.01066,93812.0,93797.0,0.09972641]
[1767660715639,0.01066,93812.0,93798.0,0.05510998]
[1767660715840,0.01066,93812.0,93798.0,0.09510998]
[1767660716039,0.01066,93811.0,93798.0,0.09510998]
[1767660716441,0.010659,93815.0,93798.0,0.09510998]
[1767660716646,0.09830351,93810.0,93798.0,0.09510998]
[1767660716948,0.09830351,93810.0,93799.0,0.05510998]
[1767660717246,0.09830351,93810.0,93799.0,0.09510998]
[1767660717442,0.00015988,93816.0,93799.0,0.09510998]
[1767660717648,0.09830351,93810.0,93800.0,0.05510998]
[1767660717946,0.09830351,93810.0,93800.0,0.09510998]
[1767660718448,0.00015988,93816.0,93801.0,0.06577098]
[1767660718745,0.00015988,93816.0,93802.0,0.05510998]
[1767660718948,0.00015988,93816.0,93802.0,0.08510998]
[1767660720246,0.00015988,93816.0,93803.0,0.05510998]
[1767660720448,0.00015988,93816.0,93803.0,0.02]
[1767660720857,0.00015988,93816.0,93804.0,0.010661]
[1767660721148,0.00015988,93816.0,93804.0,0.07275526]
[1767660721451,0.00015988,93816.0,93804.0,0.02]
[1767660721855,0.00015988,93816.0,93805.0,0.01066]
[1767660722045,0.05594185,93828.0,93811.0,0.01066]
[1767660722245,0.09064,93831.0,93813.0,0.05275526]
[1767660722449,0.10896151,93830.0,93813.0,0.05275526]
[1767660722751,0.09064,93831.0,93805.0,0.09064]
[1767660722752,0.09284947,93822.0,93805.0,0.09064]
[1767660722951,0.09830351,93820.0,93808.0,0.05275526]
[1767660723149,0.09830351,93830.0,93811.0,0.05275526]
[1767660723348,0.09830351,93830.0,93812.0,0.05275526]
[1767660724753,0.09830351,93822.0,93808.0,0.05275526]
[1767660724950,0.09830351,93822.0,93808.0,0.09275526]
[1767660725449,0.09830351,93822.0,93808.0,0.04]
[1767660725752,0.05594185,93819.0,93807.0,0.09064]
[1767660725952,0.05594185,93819.0,93807.0,0.13064]
[1767660726147,0.10350847,93820.0,93807.0,0.13064]
[1767660726354,0.15945032,93820.0,93807.0,0.04]
[1767660726551,0.09830351,93817.0,93801.0,0.00015988]
[1767660726750,0.05594185,93819.0,93801.0,0.04015988]
[1767660727450,0.09830351,93820.0,93802.0,0.06341626]
[1767660727655,0.09830351,93820.0,93805.0,0.05275526]
[1767660727846,0.09830351,93820.0,93805.0,0.09275526]
[1767660728046,0.05594185,93826.0,93807.0,0.06341526]
[1767660728247,0.14658185,93826.0,93807.0,0.06341526]
[1767660728551,0.14658185,93826.0,93807.0,0.10341526]
[1767660729153,0.05594185,93825.0,93807.0,0.04]
[1767660729363,0.18348947,93826.0,93807.0,0.04]
[1767660729364,0.09284947,93816.0,93807.0,0.04]
[1767660729750,0.05594185,93819.0,93807.0,0.04]
[1767660730362,0.09830351,93820.0,93807.0,0.04]
[1767660732859,0.09284947,93816.0,93807.0,0.04]
[1767660733060,0.010659,93818.0,93807.0,0.04]
[1767660733952,0.05594185,93817.0,93807.0,0.04]
[1767660734263,0.09284947,93818.0,93807.0,0.04]
[1767660735755,0.09284947,93818.0,93801.0,0.00015988]
[1767660735947,0.09284947,93818.0,93801.0,0.04015988]
[1767660739259,0.09284947,93818.0,93802.0,0.010661]
[1767660739460,0.09830351,93820.0,93802.0,0.10341626]
[1767660739761,0.05594185,93821.0,93802.0,0.10341626]
[1767660739963,0.09830351,93820.0,93804.0,0.010661]
[1767660740159,0.09830351,93820.0,93806.0,0.01066]
[1767660740463,0.09830351,93820.0,93806.0,0.05066]
[1767660741364,0.09830351,93820.0,93808.0,0.01066]
[1767660741565,0.09284947,93823.0,93808.0,0.01066]
[1767660741857,0.09284947,93827.0,93808.0,0.01066]
[1767660742058,0.09064,93826.0,93808.0,0.01066]
[1767660742250,0.14879132,93825.0,93805.0,0.02197923]
[1767660742451,0.09284947,93823.0,93805.0,0.06197923]
[1767660742663,0.09284947,93823.0,93805.0,0.04]
[1767660743059,0.09284947,93829.0,93805.0,0.04]
[1767660743258,0.09284947,93829.0,93809.0,0.01066]
[1767660743465,0.09284947,93829.0,93811.0,0.01066]
[1767660743660,0.09284947,93829.0,93811.0,0.05066]
[1767660744059,0.14879132,93829.0,93811.0,0.04]
[1767660744265,0.14879132,93826.0,93811.0,0.04]
[1767660744460,0.09284947,93825.0,93811.0,0.04]
[1767660745662,0.09284947,93825.0,93804.0,0.0555106]
[1767660745861,0.09284947,93825.0,93804.0,0.0955106]
[1767660746360,0.05594185,93826.0,93804.0,0.0955106]
[1767660746361,0.09284947,93817.0,93804.0,0.04]
[1767660747364,0.09284947,93816.0,93804.0,0.04]
[1767660748458,0.09830351,93820.0,93805.0,0.01066]
[1767660748757,0.05594185,93821.0,93805.0,0.04]
[1767660749060,0.18348947,93826.0,93811.0,0.01066]
[1767660749357,0.09284947,93826.0,93811.0,0.04]
[1767660749761,0.09284947,93826.0,93812.0,0.01066]
[1767660749963,0.09284947,93826.0,93812.0,0.05066]
[1767660750163,0.09284947,93826.0,93808.0,0.03626295]
[1767660750367,0.09284947,93826.0,93810.0,0.09830351]
[1767660750556,0.09284947,93826.0,93810.0,0.13830351]
[1767660750958,0.09284947,93826.0,93816.0,0.010659]
[1767660751964,0.09284947,93826.0,93813.0,0.010659]
[1767660752657,0.09284947,93826.0,93815.0,0.010659]
[1767660755062,0.14404186,93826.0,93815.0,0.04]
[1767660755267,0.14404186,93826.0,93816.0,0.010659]
[1767660755563,0.14404186,93826.0,93813.0,0.010659]
[1767660755775,0.14404186,93826.0,93813.0,0.04]
[1767660756064,0.09810469,93824.0,93813.0,0.04]
[1767660756254,0.14929708,93819.0,93811.0,0.09064]
[1767660756457,0.14929708,93817.0,93810.0,0.09064]
[1767660756656,0.09810469,93814.0,93810.0,0.10064]
[1767660756863,0.09810469,93814.0,93810.0,0.03]
[1767660757859,0.09810469,93813.0,93810.0,0.03]
[1767660758063,0.09810469,93813.0,93808.0,0.09064]
[1767660758262,0.09810469,93813.0,93808.0,0.13064]
[1767660758562,0.09810469,93813.0,93808.0,0.04]
[1767660758868,0.09810469,93812.0,93808.0,0.01]
[1767660765673,0.09810469,93812.0,93808.0,0.00207876]
[1767660768965,0.05119239,93815.0,93808.0,0.00207876]
[1767660769264,0.14929708,93815.0,93808.0,0.00207876]
[1767660771076,0.14929708,93814.0,93808.0,0.00207876]
[1767660774392,0.05573827,93812.0,93808.0,0.00207876]
[1767660774575,0.09974599,93811.0,93808.0,0.00207876]
[1767660776279,0.09974599,93809.0,93803.0,0.09064]
[1767660776477,0.09974599,93809.0,93801.0,0.00015988]
[1767660776783,0.05573827,93810.0,93801.0,0.04015988]
[1767660776978,0.15548426,93814.0,93801.0,0.04015988]
[1767660778672,0.09974599,93819.0,93805.0,0.01066]
[1767660778875,0.05573827,93818.0,93805.0,0.04]
[1767660779078,0.09974599,93819.0,93805.0,0.04]
[1767660779380,0.010658,93831.0,93806.0,0.09858382]
[1767660779681,0.09064,93830.0,93809.0,0.01066]
[1767660779983,0.09064,93830.0,93809.0,0.05066]
[1767660780177,0.010658,93828.0,93809.0,0.04]
[1767660780384,0.09064,93830.0,93809.0,0.04]
[1767660780876,0.010658,93823.0,93809.0,0.04]
[1767660781071,0.010658,93823.0,93809.0,0.00672306]
[1767660781276,0.010658,93823.0,93809.0,0.04]
[1767660781483,0.05317864,93822.0,93809.0,0.04]
[1767660782183,0.05317864,93822.0,93809.0,0.00697223]
[1767660782482,0.05317864,93822.0,93809.0,0.04]
[1767660782679,0.05317864,93820.0,93809.0,0.04]
[1767660783077,0.05317864,93819.0,93801.0,0.0987437]
[1767660783280,0.05317864,93819.0,93801.0,0.1494047]
[1767660783880,0.05317864,93819.0,93801.0,0.1387437]
[1767660784088,0.06191457,93812.0,93801.0,0.04015988]
[1767660784271,0.05125457,93811.0,93794.0,0.09064]
[1767660784475,0.05125457,93811.0,93794.0,0.13064]
[1767660784676,0.09064,93820.0,93794.0,0.13064]
[1767660784677,0.01185817,93809.0,93794.0,0.13064]
[1767660784990,0.01185817,93809.0,93795.0,0.010662]
[1767660785174,0.01185817,93809.0,93797.0,0.010661]
[1767660785373,0.01185817,93809.0,93797.0,0.050661]
[1767660788291,0.00015988,93811.0,93799.0,0.010661]
[1767660788499,0.00015988,93811.0,93799.0,0.030661]
[1767660789184,0.00015988,93811.0,93799.0,0.02]
[1767660791591,0.00442469,104220.0,93799.0,0.02]
[1767660791592,0.09068,93829.0,93799.0,0.02]
[1767660791792,0.09068,93829.0,93812.0,0.01066]
[1767660792791,0.09068,93829.0,93809.0,0.05497726]
[1767660792987,0.05317864,93828.0,93810.0,0.01066]
[1767660793187,0.05317864,93828.0,93810.0,0.05066]
[1767660793685,0.08439198,93837.0,93815.0,0.05497726]
[1767660793889,0.05317864,93835.0,93823.0,0.010658]
[1767660794084,0.09068,93836.0,93821.0,0.05497726]
[1767660794292,0.05317864,93835.0,93814.0,0.09527179]
[1767660794490,0.05317864,93835.0,93820.0,0.010659]
[1767660795398,0.05317864,93835.0,93816.0,0.01081888]
[1767660795596,0.05317864,93828.0,93816.0,0.04015988]
[1767660795997,0.05317864,93824.0,93808.0,0.01066]
[1767660796195,0.05317864,93824.0,93811.0,0.01066]
[1767660796397,0.09891694,93825.0,93813.0,0.010659]
[1767660796700,0.03412271,93828.0,93813.0,0.050659]
[1767660797495,0.09891694,93831.0,93813.0,0.050659]
[1767660797700,0.03466495,93830.0,93816.0,0.010659]
[1767660797905,0.03466495,93830.0,93816.0,0.050659]
[1767660799301,0.03284489,93828.0,93816.0,0.04]
[1767660800502,0.09891694,93829.0,93817.0,0.010659]
[1767660800692,0.09891694,93829.0,93817.0,0.050659]
[1767660802002,0.03243631,93828.0,93817.0,0.04]
[1767660802705,0.09891694,93824.0,93809.0,0.01066]
[1767660803002,0.09891694,93835.0,93814.0,0.010659]
[1767660803201,0.09891694,93835.0,93814.0,0.050659]
[1767660803398,0.00068312,93829.0,93814.0,0.050659]
[1767660803597,0.00068312,93829.0,93816.0,0.010659]
[1767660803798,0.00068312,93829.0,93818.0,0.010659]
[1767660804001,0.00068312,93829.0,93815.0,0.010659]
[1767660804200,0.00068312,93829.0,93817.0,0.010659]
[1767660804602,0.00068312,93829.0,93814.0,0.010659]
[1767660804803,0.00068312,93829.0,93814.0,0.050659]
[1767660805204,0.00068312,93829.0,93816.0,0.010659]
[1767660805506,0.00068312,93829.0,93813.0,0.010659]
[1767660805708,0.00068312,93829.0,93813.0,0.050659]
[1767660806804,0.00068312,93829.0,93818.0,0.010659]
[1767660807817,0.09907682,93830.0,93818.0,0.010659]
[1767660808311,0.09907682,93830.0,93815.0,0.010659]
[1767660809015,0.09907682,93830.0,93810.0,0.05497726]
[1767660809016,0.09907682,93830.0,93812.0,0.01066]
[1767660809223,0.09907682,93830.0,93812.0,0.05066]
[1767660811118,0.09907682,93830.0,93814.0,0.010659]
[1767660811326,0.00015988,93830.0,93814.0,0.050659]
[1767660812821,0.00015988,93830.0,93816.0,0.010659]
[1767660814624,0.00015988,93830.0,93818.0,0.010659]
[1767660817936,0.00015988,93830.0,93822.0,0.010658]
[1767660818234,0.00015988,93830.0,93818.0,0.05568792]